Workbook

Sheet All-Star
A1: From | B1: To | C1: Distance | D1: Travel Time | E1: Track | F1: Miles | G1: Trip Total | I1: Home Zip
A2: Home | B2: 34482 | C2: 1026.4 | D2: 14:58:00 | E2: Ocala | I2: 43420
A3: 34482 | B3: 34482 | C3: 0 | D3: 00:00:00 | E3: Ocala
A4: 34482 | B4: 34482 | C4: 0 | D4: 00:00:00 | E4: Ocala | I4: Cost Per Mile
A5: 34482 | B5: 32130 | C5: 62.3 | D5: 01:19:00 | E5: Volusia | I5: 1.25
A6: 32130 | B6: 32130 | C6: 0 | D6: 00:00:00 | E6: Volusia | K6: NO FLORIDA
A7: 32130 | B7: Home | C7: 1008.7 | D7: 15:37:00 | F7: =SUM(C2:C7) -> 2097.4 | G7: =SUM(D2:D7) -> 1.329166667 | I7: Season Miles | K7: Season Miles
I8: =SUM(F:F) -> 15667.3 | K8: =I8-F7 -> 13569.9
A10: Home | B10: 44807 | C10: 33.7 | D10: 00:44:00 | E10: Attica | I10: Season Hours | K10: Season Hours
A11: 44807 | B11: Home | C11: 34.4 | D11: 00:46:00 | F11: =SUM(C10:C11) -> 68.1 | G11: =SUM(D10:D11) -> 0.0625 | I11: =SUM(G:G) -> 10.49444444 | K11: =I11-G7 -> 9.165277778
I13: Season Travel Cost | K13: Season Travel Cost
A14: Home | B14: 17055 | C14: 393.4 | D14: 05:54:00 | E14: Williams Grove (PA) | I14: =I5*I8 -> 19584.125 | K14: =K8*I5 -> 16962.375
A15: 17055 | B15: 17082 | C15: 44.2 | D15: 01:09:00 | E15: Port Royal (PA)
A16: 17082 | B16: 15522 | C16: 91.6 | D16: 01:49:00 | E16: Bedford (PA)
A17: 15522 | B17: Home | C17: 313.1 | D17: 04:53:00 | F17: =SUM(C14:C17) -> 842.3 | G17: =SUM(D14:D17) -> 0.5729166667
A20: Home | B20: 44667 | C20: 94.1 | D20: 01:59:00 | E20: Wayne County
A21: 44667 | B21: Home | C21: 117 | D21: 01:57:00 | F21: =SUM(C20:C21) -> 211.1 | G21: =SUM(D20:D21) -> 0.1638888889
A24: Home | B24: 16055 | C24: 204.7 | D24: 03:20:00 | E24: Lernerville (PA)
A25: 16055 | B25: 44424 | C25: 80 | D25: 01:29:00 | E25: Sharon
A26: 44424 | B26: Home | C26: 145 | D26: 02:24:00 | F26: =SUM(C24:C26) -> 429.7 | G26: =SUM(D24:D26) -> 0.3006944444
A29: Home | B29: 53073 | C29: 409.6 | D29: 06:23:00 | E29: Plymouth (WI)
A30: 53073 | B30: 53590 | C30: 87.4 | D30: 01:26:00 | E30: Angell Park (WI)
A31: 53590 | B31: Home | C31: 419.6 | D31: 06:27:00 | F31: =SUM(C29:C31) -> 916.6 | G31: =SUM(D29:D31) -> 0.5944444444
A34: Home | B34: 44807 | C34: 33.7 | D34: 00:44:00 | E34: Attica
A35: 44807 | B35: 44667 | C35: 83.1 | D35: 01:28:00 | E35: Wayne Co.
A36: 44667 | B36: 45840 | C36: 115.4 | D36: 01:57:00 | E36: Millstream
A37: 45840 | B37: Home | C37: 38.7 | D37: 00:59:00 | F37: =SUM(C34:C37) -> 270.9 | G37: =SUM(D34:D37) -> 0.2138888889
A40: Home | B40: 14837 | C40: 367.7 | D40: 05:45:00 | E40: Outlaw (NY)
A41: 17837 | B41: 14701 | C41: 200.3 | D41: 03:41:00 | E41: StateLine (NY)
A42: 14701 | B42: 13166 | C42: 195.4 | D42: 03:12:00 | E42: Weedsport (NY)
A43: 13166 | B43: Home | C43: 395.4 | D43: 05:58:00 | F43: =SUM(C40:C43) -> 1158.8 | G43: =SUM(D40:D43) -> 0.775
A46: Home | B46: 44807 | C46: 33.7 | D46: 00:44:00 | E46: Attica
A47: 44807 | B47: 45348 | C47: 131.8 | D47: 02:15:00 | E47: Eldora
A48: 45348 | B48: 45896 | C48: 56.6 | D48: 01:03:00 | E48: Waynsfield
A49: 45896 | B49: 44667 | C49: 132.5 | D49: 02:20:00 | E49: Wayne Co.
A50: 44667 | B50: 44424 | C50: 88.4 | D50: 01:35:00 | E50: Sharon
A51: 44424 | B51: 45690 | C51: 250.7 | D51: 04:04:00 | E51: Atomic
A52: 45690 | B52: 43821 | C52: 125.6 | D52: 02:17:00 | E52: Muskingum Co.
A53: 43821 | B53: 45807 | C53: 156.9 | D53: 02:41:00 | E53: Limaland
A54: 45807 | B54: 45840 | C54: 39.3 | D54: 00:42:00 | E54: Millstream
A55: 45840 | B55: Home | C55: 38.7 | D55: 00:59:00 | F55: =SUM(C46:C55) -> 1054.2 | G55: =SUM(D46:D55) -> 0.7777777778
A58: Home | B58: 46563 | C58: 207.5 | D58: 03:17:00 | E58: Plymouth (IN)
A59: 46563 | B59: 60421 | C59: 110.4 | D59: 02:01:00 | E59: Dirt Oval @ 66 (IL)
A60: 50421 | B60: Home | C60: 648 | D60: 09:39:00 | F60: =SUM(C58:C60) -> 965.9 | G60: =SUM(D58:D60) -> 0.6229166667
A63: Home | B63: 44424 | C63: 145.9 | D63: 02:25:00 | E63: Sharon
A64: 44424 | B64: 16749 | C64: 152.6 | D64: 02:56:00 | E64: McKean Co. (PA)
A65: 16749 | B65: Home | C65: 296.5 | D65: 04:41:00 | F65: =SUM(C63:C65) -> 595 | G65: =SUM(D63:D65) -> 0.4180555556
A68: Home | B68: 16509 | C68: 183.2 | D68: 02:52:00 | E68: Eriez (PA)
A69: 16509 | B69: 15126 | C69: 135.6 | D69: 02:06:00 | E69: PPMS (PA)
A70: 15126 | B70: Home | C70: 194.4 | D70: 03:02:00 | F70: =SUM(C68:C70) -> 513.2 | G70: =SUM(D68:D70) -> 0.3333333333
A73: Home | B73: 56143 | C73: 764 | D73: 11:12:00 | E73: Jackson (MN)
A74: 56143 | B74: 50138 | C74: 245.7 | D74: 04:05:00 | E74: Knoxville (IA)
A75: 50138 | B75: 52655 | C75: 130.6 | D75: 02:03:00 | E75: 34 Raceway (IA)
A76: 52655 | B76: Home | C76: 487.1 | D76: 07:22:00 | F76: =SUM(C73:C76) -> 1627.4 | G76: =SUM(D73:D76) -> 1.029166667
A79: Home | B79: 13476 | C79: 452.2 | D79: 06:50:00 | E79: Utica-Rom (NY)
A80: 13476 | B80: 10940 | C80: 170.8 | D80: 03:16:00 | E80: Orange County (NY)
A81: 10940 | B81: 12195 | C81: 119.9 | D81: 01:57:00 | E81: Lebanon Valley (NY)
A82: 12195 | B82: Home | C82: 577.4 | D82: 08:41:00 | F82: =SUM(C79:C82) -> 1320.3 | G82: =SUM(D79:D82) -> 0.8638888889
A85: Home | B85: 19505 | C85: 475.4 | D85: 07:17:00 | E85: Grandview (PA)
A86: 19505 | B86: 17055 | C86: 88.3 | D86: 01:35:00 | E86: Williams Grove (PA)
A87: 17055 | B87: 17301 | C87: 24.5 | D87: 00:33:00 | E87: Lincoln (PA)
A88: 17301 | B88: 17370 | C88: 23.9 | D88: 00:41:00 | E88: BAPS Motor (PA)
A89: 17370 | B89: Home | C89: 404.1 | D89: 06:05:00 | F89: =SUM(C85:C89) -> 1016.2 | G89: =SUM(D85:D89) -> 0.6743055556
A92: Home | B92: 44807 | C92: 33.7 | D92: 00:44:00 | E92: Attica
A93: 44807 | B93: 44667 | C93: 83.1 | D93: 01:28:00 | E93: Wayne Co,
A94: 44667 | B94: 45840 | C94: 115.4 | D94: 01:57:00 | E94: Millstream
A95: 45840 | B95: Home | C95: 38.7 | D95: 00:59:00 | F95: =SUM(C92:C95) -> 270.9 | G95: =SUM(D92:D95) -> 0.2138888889
A98: Home | B98: 17082 | C98: 362.6 | D98: 05:42:00 | E98: Port Royal (PA)
A99: 17082 | B99: 17082 | C99: 0 | D99: 00:00:00 | E99: Port Royal (PA)
A100: 17082 | B100: Home | C100: 362.8 | D100: 05:43:00 | F100: =SUM(C98:C100) -> 725.4 | G100: =SUM(D98:D100) -> 0.4756944444
A103: Home | B103: 14837 | C103: 367.7 | D103: 05:45:00 | E103: Outlaw (NY)
A104: 14837 | B104: 17870 | C104: 143.5 | D104: 02:34:00 | E104: Selinsgrove (PA)
A105: 17870 | B105: Home | C105: 377.7 | D105: 05:49:00 | F105: =SUM(C103:C105) -> 888.9 | G105: =SUM(D103:D105) -> 0.5888888889
A108: Home | B108: 45348 | C108: 139.3 | D108: 02:21:00 | E108: Eldora
A109: 45348 | B109: Home | C109: 137.5 | D109: 02:20:00 | F109: =SUM(C108:C109) -> 276.8 | G109: =SUM(D108:D109) -> 0.1951388889
A112: Home | B112: 46901 | C112: 209.4 | D112: 03:28:00 | E112: Kokomo (IN)
A113: 46901 | B113: Home | C113: 208.8 | D113: 03:28:00 | F113: =SUM(C112:C113) -> 418.2 | G113: =SUM(D112:D113) -> 0.2888888889
